bitfinex/quotes_ETHUSD_20240621
["timestamp","ask_amount","ask_price","bid_price","bid_amount"]
[1718992837911,2.378,3483.3,3482.6,0.04241987]
[1718992838110,2.378,3483.3,3482.1,2.021]
[1718992838111,2.378,3483.3,3482.1,4.31839]
[1718992838314,2.378,3483.3,3482.7,0.04240287]
[1718992838538,2.378,3483.3,3482.1,4.31839]
[1718992838815,2.378,3483.3,3482.8,0.04238587]
[1718992839016,0.2378,3483.2,3482.1,4.31839]
[1718992839190,3.0,3483.2,3482.2,2.29738]
[1718992839391,3.0,3483.2,3482.2,2.33986788]
[1718992839589,2.378,3483.3,3482.2,2.33986788]
[1718992839790,2.378,3483.3,3482.2,0.04248788]
[1718992839988,2.378,3483.3,3482.3,2.29731]
[1718992840175,2.378,3483.3,3482.4,0.66582579]
[1718992840380,2.378,3483.3,3482.4,0.04245387]
[1718992840581,2.378,3483.3,3482.2,2.29739]
[1718992840778,2.378,3483.3,3482.5,0.04243687]
[1718992841027,2.378,3483.3,3482.3,0.04247088]
[1718992841333,2.378,3483.3,3482.3,2.29732]
[1718992841627,2.378,3483.3,3482.4,0.47428587]
[1718992842083,2.378,3483.3,3482.4,2.77154587]
[1718992842287,2.378,3483.3,3482.4,2.75665399]
[1718992847213,2.378,3483.3,3482.6,2.29712]
[1718992847597,2.378,3483.3,3482.7,0.03497154]
[1718992847816,2.378,3483.3,3482.8,0.23320915]
[1718992848121,2.378,3483.3,3482.9,0.03203985]
[1718992848826,2.4365,3483.7,3482.9,0.03203985]
[1718992849132,2.4365,3483.7,3483.1,2.29679]
[1718992849284,2.4365,3484.1,3483.2,2.52955299]
[1718992849492,2.4365,3484.7,3483.7,2.29638]
[1718992849694,2.4365,3484.7,3483.8,0.04239946]
[1718992849944,2.4365,3484.7,3483.7,2.29639]
[1718992850132,2.4365,3484.7,3483.9,0.03826085]
[1718992850326,2.4365,3484.7,3483.7,0.229646]
[1718992850549,2.4365,3484.7,3484.0,0.03824556]
[1718992850763,2.4365,3484.7,3483.7,2.526046]
[1718992850939,2.4365,3484.7,3484.1,0.03823027]
[1718992851140,2.68015,3484.7,3483.7,2.2964]
[1718992851357,3.0,3484.6,3484.2,0.03821499]
[1718992851533,2.4365,3484.7,3483.7,2.2964]
[1718992851731,2.4365,3484.7,3484.3,0.0381997]
[1718992851930,2.4365,3484.7,3483.7,2.2964]
[1718992852347,2.4365,3484.7,3483.8,0.03827614]
[1718992852552,2.4365,3484.7,3483.8,0.50139675]
[1718992853750,2.4365,3484.7,3483.8,0.52574818]
[1718992853952,2.4365,3484.7,3483.8,0.46312061]
[1718992856863,2.4365,3484.7,3483.9,2.29625]
[1718992857074,3.0,3485.2,3484.3,2.296]
[1718992857075,2.4763,3485.2,3484.3,2.296]
[1718992857781,2.4763,3485.2,3484.1,2.29612]
[1718992857931,2.4763,3485.2,3484.2,2.29601]
[1718992858276,2.4763,3485.2,3484.0,2.29615]
[1718992858476,0.24763,3485.1,3484.1,2.29614]
[1718992858630,3.24763,3485.1,3484.1,2.29614]
[1718992859645,3.0,3485.1,3484.2,2.29605]
[1718992859833,2.4763,3485.2,3484.0,4.67564]
[1718992860331,2.4763,3485.2,3483.9,2.29627]
[1718992860530,1.725,3484.8,3482.9,2.4362]
[1718992860783,2.3867,3484.5,3482.5,2.4362]
[1718992861068,2.99997,3484.4,3482.7,2.297]
[1718992861233,2.3941,3484.2,3482.6,3.202299]
[1718992861858,2.3941,3484.2,3482.6,0.905179]
[1718992862027,2.3941,3484.2,3482.2,2.29739]
[1718992862028,1.150737,3484.1,3482.2,2.29739]
[1718992862232,4.150737,3484.1,3482.2,2.29739]
[1718992862834,4.150737,3484.1,3482.1,4.3408]
[1718992863038,4.150737,3484.1,3482.5,2.2972]
[1718992863258,0.8269837,3484.0,3482.6,0.459453]
[1718992863467,0.8269837,3484.0,3482.2,2.29739]
[1718992863766,0.8269837,3484.0,3482.3,2.29732]
[1718992863957,0.8269837,3484.0,3482.3,2.35125915]
[1718992864141,2.3619,3483.9,3482.3,0.05393915]
[1718992864352,2.3619,3483.9,3482.3,0.75080007]
[1718992864353,0.73396207,3483.8,3482.3,0.75080007]
[1718992864880,0.73396207,3483.8,3482.4,2.29726]
[1718992865088,3.73396207,3483.8,3482.4,2.29726]
[1718992865241,3.73396207,3483.8,3482.5,0.03834866]
[1718992865752,3.0,3483.8,3482.6,2.29712]
[1718992865952,2.3619,3483.9,3482.8,4.31796]
[1718992866172,2.3619,3483.9,3482.8,2.021]
[1718992866341,2.3619,3483.9,3482.9,2.3316991]
[1718992866541,2.3619,3483.9,3482.9,0.0347891]
[1718992866770,2.3619,3483.9,3482.2,2.29738]
[1718992866969,2.3619,3483.9,3483.0,0.03825272]
[1718992867279,2.3619,3483.9,3482.2,9.73738]
[1718992867461,2.3619,3483.9,3481.9,2.021]
[1718992867666,2.4647,3483.7,3482.0,0.661631]
[1718992867979,0.55,3483.6,3482.0,0.661631]
[1718992868347,3.55,3483.6,3482.0,0.661631]
[1718992868938,2.3515,3483.5,3481.9,2.021]
[1718992869148,0.55,3483.4,3481.5,4.4382585]
[1718992869879,3.55,3483.4,3481.5,2.1404185]
[1718992870185,2.3515,3483.2,3481.6,0.44383885]
[1718992870477,5.3515,3483.2,3481.5,2.1404185]
[1718992870654,0.55,3483.1,3481.5,2.1404185]
[1718992870855,3.55,3483.1,3481.5,2.1404185]
[1718992871078,0.29833323,3483.0,3481.5,2.1404185]
[1718992871243,2.97148332,3482.9,3481.5,0.1194185]
[1718992871441,3.0,3482.8,3481.5,0.1194185]
[1718992873889,3.0,3482.8,3481.6,2.021]
[1718992874882,3.0,3482.8,3482.4,2.021]
[1718992875110,1.725,3483.7,3482.4,2.2231]
[1718992875111,2.2526,3483.7,3482.4,2.2231]
[1718992876710,2.2526,3483.7,3481.6,9.701]
[1718992876935,2.55093355,3483.7,3482.2,2.021]
[1718992877087,3.0,3483.6,3482.2,2.021]
[1718992877576,4.0045,3483.5,3481.6,2.261]
[1718992877774,4.0045,3483.5,3481.7,2.021]
[1718992877775,2.2795,3483.3,3481.7,2.021]
[1718992878008,0.55,3483.2,3481.7,2.021]
[1718992878200,3.55,3483.2,3481.7,2.021]
[1718992878399,2.2795,3483.0,3481.7,2.021]
[1718992878601,5.2795,3483.0,3481.7,2.021]
[1718992879116,0.55,3482.9,3481.7,2.021]
[1718992879615,2.2795,3482.8,3481.5,0.1194185]
[1718992879832,0.75545,3482.7,3481.5,0.1194185]
[1718992880111,0.55,3482.6,3481.5,0.1194185]
[1718992885419,3.0,3482.7,3482.0,2.021]
[1718992885717,2.2795,3482.8,3482.1,0.2021]
[1718992886014,2.2795,3482.8,3482.0,2.021]
[1718992886627,2.2574,3483.4,3482.4,2.021]
[1718992887094,2.2574,3483.4,3482.4,4.31826]
[1718992887299,2.2574,3483.4,3482.5,0.661565]
[1718992887530,2.2574,3483.4,3482.5,2.958695]
[1718992887732,2.2574,3483.4,3482.5,0.661565]
[1718992888040,2.2574,3483.4,3482.4,2.021]
[1718992888041,2.2574,3483.4,3482.4,4.31821]
[1718992888366,2.2574,3483.4,3482.4,2.021]
[1718992888514,2.2574,3483.4,3482.3,2.021]
[1718992888944,2.2574,3483.4,3482.4,2.29726]
[1718992889125,2.2574,3483.4,3482.5,0.661559]
[1718992889324,2.2574,3483.4,3482.5,2.958749]
[1718992889848,2.2574,3483.4,3482.8,2.29699]
[1718992890055,2.4536,3483.9,3482.5,0.661559]
[1718992890259,2.4536,3483.9,3482.4,2.29724]
[1718992890428,2.4536,3483.9,3482.8,2.297]
[1718992892479,2.4536,3483.9,3482.3,2.021]
[1718992892751,1.42377481,3483.8,3482.4,2.29726]
[1718992892924,4.42377481,3483.8,3482.4,2.29726]
[1718992893842,4.42377481,3483.8,3482.6,2.29712]
[1718992894031,4.42377481,3483.8,3482.7,0.459429]
[1718992894214,4.42377481,3483.8,3482.6,2.29712]
[1718992894752,4.42377481,3483.8,3482.4,2.29726]
[1718992895488,4.42377481,3483.8,3482.4,2.2972]
[1718992895695,4.42377481,3483.8,3482.5,2.29718]
[1718992896484,4.42377481,3483.8,3482.4,2.29726]
[1718992896686,4.42377481,3483.8,3482.4,2.958819]
[1718992896687,0.68773748,3483.7,3482.4,2.958819]
[1718992897259,0.68773748,3483.7,3482.5,2.29719]
[1718992898390,4.12532002,3483.8,3482.6,2.29712]
[1718992899066,4.12532002,3483.8,3482.4,2.958819]
[1718992899248,4.12532002,3483.8,3482.5,2.29715]
[1718992900550,4.12532002,3483.8,3482.4,0.661559]
[1718992900748,0.657892,3483.7,3482.4,0.661559]
[1718992900966,0.657892,3483.7,3482.4,2.958799]
[1718992902096,0.657892,3483.7,3482.4,0.661559]
[1718992902252,2.2749,3483.6,3482.4,0.661559]
[1718992902594,5.2749,3483.6,3482.4,2.958819]
[1718992902788,5.95302439,3483.6,3482.4,2.958819]
[1718992903002,5.95302439,3483.6,3482.4,0.661559]
[1718992903356,5.95302439,3483.6,3482.1,2.021]
[1718992903357,2.2749,3483.5,3482.1,2.021]
[1718992903564,2.2749,3483.4,3481.9,2.29759]
[1718992904190,5.2749,3483.4,3481.9,2.29759]
[1718992904393,2.2749,3483.4,3481.9,2.29759]
[1718992904694,0.59530244,3483.3,3482.0,0.661624]
[1718992904991,0.59530244,3483.3,3482.1,2.29746]
[1718992904992,3.59530244,3483.3,3482.1,2.29746]
[1718992905204,3.0,3483.3,3482.1,2.29746]
[1718992905498,2.2749,3483.4,3482.1,4.31846]
[1718992905804,2.2749,3483.4,3482.2,2.29738]
[1718992906008,2.2749,3483.4,3482.3,2.2973]
[1718992906209,2.2749,3483.4,3482.4,2.2972]
[1718992906391,2.2749,3483.4,3482.5,2.021]
[1718992906602,2.2749,3483.4,3482.7,2.29706]
[1718992907329,2.4329,3483.8,3482.9,2.021]
[1718992907496,2.4329,3483.8,3483.3,2.021]
[1718992907674,2.4329,3484.2,3483.3,4.31763]
[1718992907866,0.24329,3484.1,3483.3,4.31763]
[1718992908066,2.4329,3484.2,3483.3,4.31763]
[1718992908258,2.4329,3484.2,3483.4,2.29658]
[1718992909403,7.29,3484.8,3483.7,4.31738]
[1718992909404,2.3009,3484.6,3483.7,4.31738]
[1718992910670,2.3009,3484.6,3483.8,2.29631]
[1718992910868,3.0,3485.2,3483.8,2.29631]
[1718992910869,2.2706,3485.1,3484.0,2.29619]
[1718992911077,2.2706,3485.1,3484.6,2.29581]
[1718992911381,2.2706,3485.1,3484.5,2.021]
[1718992911967,2.2706,3486.0,3484.5,4.978166]
[1718992912212,5.2706,3486.0,3484.7,2.29574]
[1718992912390,2.2706,3486.0,3484.9,2.021]
[1718992912590,0.39976,3485.9,3485.0,2.29555]
[1718992913213,0.39976,3485.9,3484.9,2.021]
[1718992913214,0.39976,3485.9,3484.9,2.29559]
[1718992913388,0.39976,3485.9,3484.9,4.31659]
[1718992913586,0.39976,3485.9,3485.0,2.29554]
[1718992913787,2.2706,3486.0,3485.2,2.2954]
[1718992914095,2.2706,3486.0,3485.3,2.29534]
[1718992914277,2.2706,3486.7,3485.3,4.31634]
[1718992915576,2.2706,3486.7,3485.3,2.021]
[1718992915806,5.56881644,3486.7,3485.3,2.021]
[1718992916081,1.13689262,3486.6,3485.3,2.021]
[1718992916280,4.13689262,3486.6,3485.3,2.021]
[1718992917636,4.13689262,3486.6,3485.1,2.29544]
[1718992920199,4.13689262,3486.6,3484.9,4.31661]
[1718992920504,4.13689262,3486.6,3484.9,4.31657]
[1718992920849,4.13689262,3486.6,3482.7,0.59948606]
[1718992920850,1.727,3486.2,3484.2,9.73602]
[1718992921141,2.8142,3486.1,3484.3,2.021]
[1718992921371,3.0,3486.0,3484.3,2.021]
[1718992921491,1.30412,3485.9,3484.3,2.021]
[1718992921697,4.756,3485.7,3483.5,2.3898]
[1718992921939,3.0,3485.6,3484.0,2.021]
[1718992922144,3.0,3485.6,3484.4,2.021]
[1718992922347,0.656832,3485.6,3484.5,0.431707]
[1718992923395,0.656832,3485.6,3484.4,2.021]
[1718992923828,3.0,3485.7,3484.8,2.021]
[1718992923996,2.2642,3485.8,3484.8,2.021]
[1718992924431,2.2642,3485.8,3484.4,2.021]
[1718992925370,0.55,3485.7,3484.4,2.021]
[1718992925508,3.55,3485.7,3484.4,4.31693]
[1718992925824,3.83142,3485.7,3484.5,0.661299]
[1718992926223,3.0,3485.7,3484.8,2.021]
[1718992926564,2.2642,3485.8,3484.8,2.021]
[1718992928054,2.2642,3485.8,3484.4,2.021]
[1718992928267,0.55,3485.7,3484.4,2.021]
[1718992928550,3.55,3485.7,3484.4,2.021]
[1718992928708,0.61124837,3485.6,3484.4,2.021]
[1718992931028,0.61124837,3485.6,3484.4,4.31694]
[1718992931225,3.0,3485.7,3484.5,2.31103617]
[1718992931421,3.0,3485.7,3484.8,2.021]
[1718992931609,2.2642,3485.8,3484.8,2.021]
[1718992932971,5.3572,3486.2,3484.8,4.31661]
[1718992933116,2.3572,3486.2,3484.8,4.31668]
[1718992933315,2.96297819,3486.2,3484.9,0.906852]
[1718992933557,3.29832973,3486.1,3484.9,0.906852]
[1718992933854,3.29832973,3486.1,3484.9,3.202442]
[1718992934016,3.29832973,3486.1,3484.9,0.906852]
[1718992934215,3.29832973,3486.1,3485.0,0.5223542]
[1718992935054,3.29832973,3486.1,3485.0,2.8178542]
[1718992935253,3.29832973,3486.1,3485.0,0.5223542]
[1718992938039,3.0,3486.1,3485.2,2.53233842]
[1718992938274,2.3572,3486.2,3485.2,2.53233842]
[1718992940435,3.0,3486.5,3485.9,2.29495]
[1718992940639,3.0,3487.0,3485.9,2.29495]
[1718992940836,3.0,3487.0,3486.0,2.29486]
[1718992941076,2.3719,3487.1,3486.0,2.29486]
[1718992941272,0.53719,3487.0,3486.0,2.29486]
[1718992941572,0.53719,3487.0,3486.0,4.31586]
[1718992941771,2.3719,3487.1,3486.0,4.31586]
[1718992942486,7.29,3487.5,3486.2,2.29475]
[1718992942487,9.6706,3487.5,3486.2,2.29475]
[1718992942799,2.3806,3487.5,3486.2,2.29475]
[1718992942948,0.29832037,3487.4,3486.2,2.29475]
[1718992943138,3.29832037,3487.4,3486.2,2.29475]
[1718992943338,0.56789204,3487.3,3486.1,2.4327]
[1718992943586,3.29832037,3487.4,3486.4,2.021]
[1718992943737,3.0,3487.4,3486.4,2.021]
[1718992943967,2.3199,3487.8,3486.4,2.021]
[1718992948013,2.3199,3487.8,3486.2,2.021]
[1718992948014,0.55,3487.7,3486.2,2.021]
[1718992948169,0.78199,3487.7,3486.3,0.44537]
[1718992948602,3.23199,3487.7,3486.3,0.44537]
[1718992948805,3.0,3487.7,3486.3,0.44537]
[1718992955481,3.0,3487.7,3486.4,0.05728568]
[1718992955682,3.0,3487.7,3486.3,0.44537]
[1718992961924,2.4617,3487.5,3485.5,2.3639]
[1718992962134,2.4617,3487.4,3485.5,2.021]
[1718992962292,2.4617,3487.2,3485.5,2.021]
[1718992962496,0.60117,3487.1,3485.6,0.2021]
[1718992962916,3.60117,3487.1,3485.6,0.2021]
[1718992964298,2.4546,3487.0,3485.6,0.2021]
[1718992964504,5.4546,3487.0,3485.6,0.2021]
[1718992964705,0.605577,3486.9,3485.6,0.2021]
[1718992964953,3.605577,3486.9,3485.6,0.2021]
[1718992965286,1.727,3486.7,3485.1,2.021]
[1718992965405,1.727,3486.7,3484.2,9.9239]
[1718992965406,4.756,3486.5,3484.2,9.9239]
[1718992965591,2.446,3486.2,3484.3,3.01339]
[1718992965790,2.446,3486.2,3484.3,2.021]
[1718992966041,0.55,3486.1,3484.3,2.021]
[1718992966548,3.55,3486.1,3484.3,2.021]
[1718992973027,0.29976698,3486.0,3484.3,2.021]
[1718992973835,2.4298,3485.9,3484.3,2.021]
[1718992974010,0.6279567,3485.8,3484.4,0.45049]
[1718992974215,3.6279567,3485.8,3484.4,0.45049]
[1718992977330,3.0,3485.8,3484.4,0.45049]
[1718992977635,5.4298,3485.9,3485.1,2.021]
[1718992977848,2.4298,3485.9,3485.1,2.021]
[1718992977998,3.0,3485.8,3485.1,2.021]
[1718992978201,3.0,3485.8,3484.7,2.021]
[1718992978556,2.4298,3485.9,3484.8,0.2021]
[1718992979044,2.72948935,3485.9,3484.4,0.45049]
[1718992979212,3.0,3485.8,3484.4,0.45049]
[1718992981316,3.0,3485.8,3484.4,2.74641]
[1718992981508,3.0,3485.8,3484.4,0.45049]
[1718992982342,3.0,3485.8,3484.4,2.74643]
[1718992982541,3.0,3485.8,3484.5,0.725133]
[1718992986176,2.4298,3485.9,3484.5,0.725133]
[1718992986331,2.4298,3485.9,3484.7,2.29574]
[1718992986728,2.4175,3486.5,3484.8,2.2625]
[1718992987168,2.71711966,3486.5,3484.8,2.2625]
[1718992987375,3.0,3486.4,3484.9,0.657924]
[1718992987831,3.0,3486.4,3485.0,2.021]
[1718992988838,2.71711966,3486.5,3485.2,2.29538]
[1718992989030,2.4175,3486.5,3485.2,2.29538]
[1718992989232,2.4175,3486.5,3485.3,0.431638]
[1718992989438,2.3274,3486.4,3484.4,4.78072]
[1718992989664,2.8774,3486.4,3484.4,2.4848]
[1718992989978,2.3274,3486.3,3484.4,2.4848]
[1718992990145,2.3274,3486.1,3484.5,0.680186]
[1718992990344,5.3274,3486.1,3484.5,0.680186]
[1718992990880,2.4629,3485.9,3484.0,2.3361]
[1718992991246,2.3499,3485.6,3483.9,2.021]
[1718992991458,2.3499,3485.4,3483.6,2.2526]
[1718992991639,3.05759,3485.3,3483.7,0.22526]
[1718992991838,3.55,3485.2,3483.7,0.22526]
[1718992992560,3.0,3485.2,3483.8,4.31734]
[1718992992884,2.3499,3485.3,3483.8,4.31734]
[1718992993188,2.3499,3485.3,3483.9,0.909165]
[1718992993673,2.3499,3485.3,3483.8,2.021]
[1718992994238,2.3499,3485.3,3483.8,4.31732]
[1718992994772,2.3499,3485.3,3483.8,2.021]
[1718992995454,2.3499,3485.3,3483.7,0.22526]
[1718992995650,2.4688,3485.1,3483.2,4.56283]
[1718992995872,2.4688,3485.1,3483.4,2.021]
[1718992996176,2.454,3485.0,3483.4,2.021]
[1718992996356,2.9207,3484.9,3482.7,2.29706]
[1718992996677,2.3707,3484.6,3482.7,2.021]
[1718992997175,2.9211,3484.5,3482.7,2.021]
[1718992997377,0.76481,3484.4,3482.8,0.54314986]
[1718992997682,2.4557,3484.3,3482.8,0.54314986]
[1718992997978,2.4557,3484.3,3482.5,2.2515]
[1718992999547,0.55,3484.2,3482.5,2.2515]
[1718992999874,3.55,3484.2,3482.5,2.2515]
[1718993000044,3.84925268,3484.2,3482.5,2.2515]
[1718993000412,0.87967627,3484.1,3482.6,0.656976]
[1718993000782,2.259,3484.0,3482.6,0.656976]
[1718993001073,2.259,3483.8,3481.8,7.44]
[1718993001375,2.259,3483.8,3481.7,2.021]
[1718993001580,3.0068,3483.7,3481.7,4.31872]
[1718993001880,0.77338,3483.6,3481.8,3.19641285]
[1718993002083,3.77338,3483.6,3481.8,3.19641285]
[1718993002289,3.0,3483.6,3481.8,3.19641285]
[1718993002841,3.0,3483.6,3481.8,0.89876285]
[1718993003048,3.0,3483.6,3482.3,2.29732]
[1718993003251,2.4568,3483.7,3482.3,2.29732]
[1718993003566,2.4568,3483.7,3482.4,0.661576]
[1718993003567,0.24568,3483.6,3482.4,0.661576]
[1718993003770,3.24568,3483.6,3482.4,0.661576]
[1718993003950,3.24568,3483.6,3482.1,2.021]
[1718993004692,3.24568,3483.6,3482.1,4.31844]
[1718993004856,3.0,3483.6,3482.3,2.29732]
[1718993005051,2.4568,3483.7,3482.3,2.29732]
[1718993005405,2.4568,3483.7,3482.1,4.31844]
[1718993005406,2.4568,3483.7,3482.1,2.021]
[1718993005891,2.4568,3483.7,3482.3,2.29726]
[1718993006498,2.4568,3483.7,3482.4,2.29725]
[1718993006703,2.4568,3483.7,3482.5,0.468865]
[1718993007170,2.4568,3483.7,3482.6,2.021]
[1718993009168,2.4568,3483.7,3482.2,2.021]
[1718993010086,2.4991,3483.5,3482.2,2.021]
[1718993010290,0.30491,3483.4,3482.2,2.021]
[1718993010481,3.30491,3483.4,3481.8,4.31862]
[1718993011205,2.4898,3483.3,3481.7,6.62632]
[1718993011388,0.579471,3483.2,3481.8,0.90435485]
[1718993011721,3.579471,3483.2,3481.8,0.90435485]
[1718993012672,3.579471,3483.2,3481.9,2.29759]
[1718993013073,3.579471,3483.2,3482.0,2.29751]
[1718993013273,3.0,3483.2,3482.1,0.54995149]
[1718993013473,5.4898,3483.3,3482.1,2.57095149]
[1718993015460,2.4898,3483.3,3482.3,2.29727]
[1718993015709,2.4898,3483.3,3482.4,0.71655915]
[1718993015906,2.4898,3483.3,3482.4,3.01379915]
[1718993016611,3.0,3483.6,3482.5,2.29719]
[1718993016926,0.87967627,3484.1,3482.4,0.71655915]
[1718993016927,2.3213,3483.7,3482.8,2.297]
[1718993017075,2.3213,3483.7,3482.8,2.958513]
[1718993017576,2.3213,3483.7,3482.8,0.661513]
[1718993018579,2.4659,3484.2,3483.2,2.29667]
[1718993018775,2.4659,3484.2,3483.2,2.29673]
[1718993019008,2.4659,3484.9,3483.5,2.021]
[1718993019258,2.4659,3484.9,3483.3,0.431773]
[1718993019385,2.76547096,3484.9,3483.4,2.29657]
[1718993019590,3.0,3484.8,3483.4,2.29657]
[1718993019789,3.0,3484.8,3483.5,0.9365573]
[1718993020382,3.0,3484.8,3483.3,0.431773]
[1718993020873,3.0,3484.8,3483.5,2.29652]
[1718993021079,3.0,3484.8,3483.6,2.021]
[1718993021296,2.4659,3484.9,3483.8,2.29632]
[1718993022014,2.4659,3484.9,3484.1,2.29613]
[1718993022239,2.4369,3485.6,3484.2,2.755307]
[1718993022395,2.4369,3485.6,3484.4,2.29594]
[1718993022593,2.4369,3485.6,3484.5,2.29587]
[1718993023521,2.4369,3485.6,3484.6,0.05733044]
[1718993023820,2.68059,3485.6,3484.6,0.05733044]
[1718993024220,3.0,3485.5,3484.6,0.05733044]
[1718993024720,3.0,3485.5,3484.6,2.35314044]
[1718993024921,2.4369,3485.6,3484.6,2.35314044]
[1718993025421,0.2879,3486.4,3484.9,2.29556]
[1718993025422,2.264,3486.1,3484.9,2.29556]
[1718993025781,0.29952945,3486.0,3484.7,2.29574]
[1718993026183,0.29952945,3486.0,3484.6,2.2958]
[1718993026413,0.25635295,3485.9,3484.7,2.957002]
[1718993026626,0.25635295,3485.9,3484.8,2.29567]
[1718993027235,3.29952945,3486.0,3484.9,2.29559]
[1718993027384,3.0,3486.0,3484.9,2.29559]
[1718993027593,3.0,3486.0,3485.0,2.29552]
[1718993027890,2.264,3486.1,3485.0,0.05738157]
[1718993029299,2.264,3486.1,3484.9,2.29561]
[1718993029598,0.5264,3486.0,3484.9,0.7273602]
[1718993029785,3.5264,3486.0,3484.9,0.7273602]
[1718993029991,3.5264,3486.0,3484.8,2.021]
[1718993032119,3.5264,3486.0,3484.4,2.021]
[1718993032331,0.29957793,3485.9,3484.4,2.021]
[1718993033092,2.3333,3485.7,3484.4,2.021]
[1718993033295,0.31828779,3485.6,3484.4,2.021]
[1718993033493,3.31828779,3485.6,3484.4,2.021]
[1718993033722,3.31828779,3485.6,3484.5,2.29587]
[1718993033905,3.0,3485.6,3484.7,2.29568]
[1718993034237,0.30012624,3486.5,3484.8,6.62737198]
[1718993034238,3.0,3485.8,3484.8,6.62737198]
[1718993034455,2.3333,3486.1,3485.0,2.29553]
[1718993034611,2.3333,3486.1,3485.1,0.94957725]
[1718993036122,2.3333,3486.1,3485.1,3.24505725]
[1718993037011,3.0,3486.4,3485.7,2.021]
[1718993037364,7.29,3487.0,3485.7,2.021]
[1718993037365,2.4506,3487.0,3485.7,2.021]
[1718993037508,2.4506,3487.0,3485.9,2.29495]
[1718993037908,2.4506,3487.0,3486.0,2.29485]
[1718993038443,2.4506,3487.0,3485.8,0.672514]
[1718993038444,2.4506,3487.0,3485.9,2.29495]
[1718993039243,2.4506,3487.0,3485.3,2.29533]
[1718993039445,3.72466,3487.0,3485.4,2.774653]
[1718993039656,3.0,3486.9,3485.4,2.774633]
[1718993039945,3.0,3486.9,3485.4,0.479413]
[1718993040165,3.0,3486.9,3485.4,2.774693]
[1718993040346,0.70242415,3486.8,3485.4,0.479413]
[1718993040719,0.70242415,3486.8,3485.4,2.774693]
[1718993041075,3.0,3486.9,3485.6,2.29515]
[1718993041215,3.0,3486.9,3485.7,2.29508]
[1718993041407,3.0,3486.9,3485.5,2.021]
[1718993041625,3.0,3486.9,3485.5,4.31617]
[1718993041837,3.0,3486.9,3485.6,3.0041743]
[1718993042323,3.0,3486.9,3486.1,2.29482]
[1718993042523,3.0,3486.9,3485.8,2.295]
[1718993042727,3.0,3486.9,3485.9,2.29493]
[1718993042920,3.0,3486.9,3486.0,2.29488]
[1718993043169,3.0,3486.9,3486.1,4.825888]
[1718993043528,2.3142,3487.7,3486.3,2.29463]
[1718993043731,2.3142,3487.7,3486.5,2.29454]
[1718993044147,3.0,3488.4,3487.1,2.29414]
[1718993044664,5.3143,3488.5,3487.1,2.29414]
[1718993044872,0.23143,3488.4,3487.1,2.29414]
[1718993045230,3.23143,3488.4,3487.1,2.29414]
[1718993045632,3.23143,3488.4,3487.3,2.29403]
[1718993046063,3.23143,3488.4,3487.1,2.29414]
[1718993046227,3.23143,3488.4,3487.2,0.907381]
[1718993046427,3.23143,3488.4,3487.2,3.201461]
[1718993046868,3.23143,3488.4,3487.2,0.907381]
[1718993048167,3.23143,3488.4,3486.5,2.29452]
[1718993048168,3.23143,3488.4,3486.5,6.79172]
[1718993048374,0.55,3488.3,3486.5,6.79172]
[1718993049150,0.55,3488.3,3486.6,2.29449]
[1718993049487,0.55,3488.3,3486.8,2.29436]
[1718993049686,0.55,3488.3,3486.9,0.05734626]
[1718993049834,0.63951457,3488.2,3486.6,3.203069]
[1718993050033,0.63951457,3488.2,3486.6,0.908639]
[1718993050343,2.8118,3488.1,3486.2,2.29473]
[1718993050564,3.0,3488.0,3486.1,2.479988]
[1718993050780,0.55,3487.9,3486.1,0.458988]
[1718993050991,0.55,3487.9,3485.6,3.0042043]
[1718993050992,2.329,3487.7,3485.6,3.0042043]
[1718993051148,0.55,3487.6,3485.6,5.0252043]
[1718993051504,3.55,3487.6,3485.7,2.29509]
[1718993051680,0.94617,3487.5,3485.8,0.50251743]
[1718993052002,2.4038,3487.4,3485.8,0.50251743]
[1718993052184,5.9538,3487.4,3485.8,2.79752743]
[1718993052368,5.9538,3487.4,3486.0,2.021]
[1718993054872,5.4038,3487.4,3486.0,4.31589]
[1718993055091,5.4038,3487.4,3486.1,2.77666074]
[1718993055256,2.4038,3487.4,3486.1,2.77666074]
[1718993056070,2.4038,3487.4,3486.1,0.48184074]
[1718993056258,2.4038,3487.4,3486.2,2.29473]
[1718993056659,2.4038,3487.4,3486.1,0.48184074]
[1718993057006,2.4038,3487.4,3486.2,0.47976707]
[1718993060694,2.4038,3487.4,3485.7,2.29504]
[1718993060887,2.70310629,3487.4,3485.7,2.021]
[1718993061115,2.70310629,3487.4,3485.4,4.58998]
[1718993061389,2.2655,3487.0,3485.0,2.29555]
[1718993061614,1.727,3487.1,3485.1,0.459122]
[1718993061615,2.2655,3486.8,3485.1,0.459122]
[1718993061794,5.2655,3486.8,3485.1,0.459122]
[1718993061994,2.2655,3486.8,3485.1,0.459122]
[1718993062195,0.52655,3486.7,3485.2,0.5050222]
[1718993062523,3.52655,3486.7,3485.2,0.5050222]
[1718993063855,3.52655,3486.7,3485.2,2.8004222]
[1718993064360,3.0,3486.7,3485.4,2.29528]
[1718993064718,2.2655,3486.8,3485.4,2.29528]
[1718993064915,2.2655,3486.8,3485.3,2.29535]
[1718993065115,2.2655,3486.8,3485.3,4.60065]